[Event "*** Titled Tuesday Blitz"]
[Site "Chess.com"]
[Date "2020.03.03"]
[Round "4"]
[White "DACF2905"]
[Black "elohunter1999"]
[Result "0-1"]
[WhiteElo "2212"]
[BlackElo "2442"]
[TimeControl "180+1"]
[EndTime "13:41:38 PST"]
[Termination "elohunter1999 won by checkmate"]

1. c4 {[%clk 0:03:00.9]} 1... f5 {[%clk 0:02:53.2]} 2. b3 {[%clk 0:02:59.1]}
2... Nf6 {[%clk 0:02:52.3]} 3. Bb2 {[%clk 0:03:00]} 3... e6 {[%clk 0:02:50.4]}
4. g3 {[%clk 0:03:00.3]} 4... g6 {[%clk 0:02:45.3]} 5. Bg2 {[%clk 0:02:59.3]}
5... Bg7 {[%clk 0:02:45.8]} 6. Nf3 {[%clk 0:02:58.9]} 6... O-O {[%clk
0:02:46.3]} 7. Nc3 {[%clk 0:02:55.4]} 7... d6 {[%clk 0:02:44]} 8. d3 {[%clk
0:02:54.1]} 8... Nc6 {[%clk 0:02:43.1]} 9. O-O {[%clk 0:02:53.8]} 9... Qe8
{[%clk 0:02:42.5]} 10. Rb1 {[%clk 0:02:53.1]} 10... a5 {[%clk 0:02:42]} 11. e4
{[%clk 0:02:52.8]} 11... e5 {[%clk 0:02:37.7]} 12. Re1 {[%clk 0:02:50.2]} 12...
f4 {[%clk 0:02:36.9]} 13. h3 {[%clk 0:02:47]} 13... fxg3 {[%clk 0:02:32.1]} 14.
fxg3 {[%clk 0:02:46.6]} 14... Nh5 {[%clk 0:02:33]} 15. Kh2 {[%clk 0:02:45.7]}
15... Nd4 {[%clk 0:02:30.6]} 16. Nd5 {[%clk 0:02:43.8]} 16... Nxf3+ {[%clk
0:02:11.2]} 17. Bxf3 {[%clk 0:02:43.1]} 17... c6 {[%clk 0:02:12.1]} 18. Nb6
{[%clk 0:02:15.8]} 18... Rb8 {[%clk 0:01:56.2]} 19. Nxc8 {[%clk 0:02:14.6]}
19... Rxc8 {[%clk 0:01:57.1]} 20. Bg4 {[%clk 0:02:14.1]} 20... Rc7 {[%clk
0:01:57]} 21. Rf1 {[%clk 0:02:14.1]} 21... Rcf7 {[%clk 0:01:56.5]} 22. Qe2
{[%clk 0:02:13.1]} 22... Nf6 {[%clk 0:01:45.8]} 23. Bf3 {[%clk 0:02:11.7]} 23...
Nd7 {[%clk 0:01:45.4]} 24. Bg2 {[%clk 0:02:11.5]} 24... Nc5 {[%clk 0:01:44.8]}
25. Ba3 {[%clk 0:02:10.5]} 25... Bh6 {[%clk 0:01:38.9]} 26. Rxf7 {[%clk
0:02:04.1]} 26... Rxf7 {[%clk 0:01:37.4]} 27. Rf1 {[%clk 0:02:03.7]} 27... Qf8
{[%clk 0:01:31.5]} 28. Rf3 {[%clk 0:02:01.6]} 28... Rxf3 {[%clk 0:01:27.3]} 29.
Bxf3 {[%clk 0:01:59.8]} 29... Ne6 {[%clk 0:01:27.1]} 30. Bb2 {[%clk 0:01:57.8]}
30... Bc1 {[%clk 0:01:08.9]} 31. Bc3 {[%clk 0:01:30.6]} 31... b6 {[%clk
0:00:55.2]} 32. Bg4 {[%clk 0:01:20.6]} 32... Nd4 {[%clk 0:00:53.1]} 33. Bxd4
{[%clk 0:01:18.2]} 33... exd4 {[%clk 0:00:54]} 34. Qf3 {[%clk 0:01:17.3]} 34...
Qe7 {[%clk 0:00:40.5]} 35. Qf1 {[%clk 0:01:13.8]} 35... Bg5 {[%clk 0:00:39.5]}
36. h4 {[%clk 0:01:12.3]} 36... Bf6 {[%clk 0:00:38]} 37. Kg2 {[%clk 0:01:01.5]}
37... h5 {[%clk 0:00:37]} 38. Bh3 {[%clk 0:00:57.9]} 38... Be5 {[%clk
0:00:37.9]} 39. Qf3 {[%clk 0:00:55.2]} 39... b5 {[%clk 0:00:35.4]} 40. Bc8
{[%clk 0:00:32.6]} 40... bxc4 {[%clk 0:00:28.2]} 41. bxc4 {[%clk 0:00:31.2]}
41... Qe8 {[%clk 0:00:28.1]} 42. Bh3 {[%clk 0:00:26.9]} 42... Qe7 {[%clk
0:00:24.8]} 43. Bc8 {[%clk 0:00:23.6]} 43... Kg7 {[%clk 0:00:23.7]} 44. Qf2
{[%clk 0:00:17]} 44... Qe8 {[%clk 0:00:21.4]} 45. Bh3 {[%clk 0:00:15.5]} 45...
Qb8 {[%clk 0:00:20.4]} 46. Be6 {[%clk 0:00:15.1]} 46... Qb7 {[%clk 0:00:20.1]}
47. Kh3 {[%clk 0:00:11.7]} 47... a4 {[%clk 0:00:20.1]} 48. Qc2 {[%clk
0:00:10.1]} 48... a3 {[%clk 0:00:18.9]} 49. Qa4 {[%clk 0:00:08.7]} 49... Kf6
{[%clk 0:00:18.2]} 50. Bg8 {[%clk 0:00:06.3]} 50... Qd7+ {[%clk 0:00:17.5]} 51.
Kg2 {[%clk 0:00:05.3]} 51... Qg4 {[%clk 0:00:17.5]} 52. Qxc6 {[%clk 0:00:03.5]}
52... Qxg3+ {[%clk 0:00:17.7]} 53. Kf1 {[%clk 0:00:03.8]} 53... Qf3+ {[%clk
0:00:17.5]} 54. Ke1 {[%clk 0:00:03.5]} 54... Qe3+ {[%clk 0:00:16]} 55. Kf1
{[%clk 0:00:02.9]} 55... Qxd3+ {[%clk 0:00:16.3]} 56. Kg2 {[%clk 0:00:03.8]}
56... Qe2+ {[%clk 0:00:16.1]} 57. Kh3 {[%clk 0:00:03.1]} 57... Qf3# {[%clk
0:00:15.6]} 0-1

[Event "*** Titled Tuesday Blitz"]
[Site "Chess.com"]
[Date "2020.03.03"]
[Round "4"]
[White "Ar4uha"]
[Black "MaxLeto"]
[Result "1-0"]
[WhiteElo "2583"]
[BlackElo "2405"]
[TimeControl "180+1"]
[EndTime "13:41:43 PST"]
[Termination "Ar4uha won by checkmate"]

1. e4 {[%clk 0:03:00.9]} 1... c5 {[%clk 0:02:59.2]} 2. Nf3 {[%clk 0:02:56]} 2...
d6 {[%clk 0:02:59.1]} 3. Bb5+ {[%clk 0:02:53.8]} 3... Bd7 {[%clk 0:02:53.6]} 4.
Bxd7+ {[%clk 0:02:53.2]} 4... Qxd7 {[%clk 0:02:54.5]} 5. O-O {[%clk 0:02:53.6]}
5... Nf6 {[%clk 0:02:51.8]} 6. e5 {[%clk 0:02:52.3]} 6... dxe5 {[%clk
0:02:50.4]} 7. Nxe5 {[%clk 0:02:53.2]} 7... Qc7 {[%clk 0:02:49.7]} 8. d4 {[%clk
0:02:49.2]} 8... Nbd7 {[%clk 0:02:44.4]} 9. Bf4 {[%clk 0:02:48.6]} 9... Qb6
{[%clk 0:02:03.4]} 10. Nxd7 {[%clk 0:01:58.9]} 10... Nxd7 {[%clk 0:02:02.7]} 11.
d5 {[%clk 0:01:55.3]} 11... g6 {[%clk 0:01:26.9]} 12. Nd2 {[%clk 0:01:54]} 12...
Bg7 {[%clk 0:01:15.7]} 13. Nc4 {[%clk 0:01:54.4]} 13... Qa6 {[%clk 0:01:12.4]}
14. b3 {[%clk 0:01:54.4]} 14... O-O {[%clk 0:01:10.3]} 15. a4 {[%clk 0:01:54.3]}
15... Rfe8 {[%clk 0:01:01.8]} 16. Re1 {[%clk 0:01:52.1]} 16... Rad8 {[%clk
0:00:59.6]} 17. Rb1 {[%clk 0:01:50.6]} 17... Nf6 {[%clk 0:00:48.5]} 18. Ne3
{[%clk 0:01:42.7]} 18... e6 {[%clk 0:00:47.3]} 19. c4 {[%clk 0:01:36.1]} 19...
exd5 {[%clk 0:00:44.1]} 20. Nxd5 {[%clk 0:01:35]} 20... Rxe1+ {[%clk 0:00:42.7]}
21. Qxe1 {[%clk 0:01:35.9]} 21... Nxd5 {[%clk 0:00:41.3]} 22. cxd5 {[%clk
0:01:36.8]} 22... Qd3 {[%clk 0:00:35.6]} 23. d6 {[%clk 0:01:28.1]} 23... Bc3
{[%clk 0:00:27.7]} 24. Qc1 {[%clk 0:01:22.6]} 24... b6 {[%clk 0:00:20.7]} 25.
Bg3 {[%clk 0:01:15.3]} 25... f6 {[%clk 0:00:18.5]} 26. h3 {[%clk 0:01:12]} 26...
Be5 {[%clk 0:00:18.1]} 27. Bxe5 {[%clk 0:01:06.5]} 27... fxe5 {[%clk 0:00:19]}
28. Qg5 {[%clk 0:01:00.6]} 28... Qxd6 {[%clk 0:00:18.9]} 29. Re1 {[%clk
0:01:00.1]} 29... Re8 {[%clk 0:00:17.7]} 30. h4 {[%clk 0:01:00.4]} 30... Qe7
{[%clk 0:00:13.5]} 31. Qg4 {[%clk 0:00:59.3]} 31... Qe6 {[%clk 0:00:12.9]} 32.
Qg3 {[%clk 0:00:59.8]} 32... e4 {[%clk 0:00:11.5]} 33. h5 {[%clk 0:00:58.6]}
33... Kg7 {[%clk 0:00:11.8]} 34. Qg5 {[%clk 0:00:58.1]} 34... Qe5 {[%clk
0:00:06.2]} 35. h6+ {[%clk 0:00:56.6]} 35... Kg8 {[%clk 0:00:06.3]} 36. Qd2
{[%clk 0:00:54.9]} 36... Qd4 {[%clk 0:00:04.7]} 37. Qf4 {[%clk 0:00:54.9]} 37...
Qe5 {[%clk 0:00:04.7]} 38. Qg4 {[%clk 0:00:54.1]} 38... Qe6 {[%clk 0:00:04.4]}
39. Qh4 {[%clk 0:00:52]} 39... Qe7 {[%clk 0:00:04.3]} 40. Qh3 {[%clk 0:00:45.1]}
40... Qe6 {[%clk 0:00:04.1]} 41. Qc3 {[%clk 0:00:44.4]} 41... Qe5 {[%clk
0:00:04.2]} 42. Qc4+ {[%clk 0:00:45]} 42... Qe6 {[%clk 0:00:04.7]} 43. Rxe4
{[%clk 0:00:31.2]} 43... Qxc4 {[%clk 0:00:04.9]} 44. Rxe8+ {[%clk 0:00:32.1]}
44... Kf7 {[%clk 0:00:05.8]} 45. bxc4 {[%clk 0:00:33]} 45... Kxe8 {[%clk
0:00:06.7]} 46. f4 {[%clk 0:00:33.9]} 46... g5 {[%clk 0:00:04.7]} 47. f5 {[%clk
0:00:30.5]} 47... g4 {[%clk 0:00:05.2]} 48. Kf2 {[%clk 0:00:30.5]} 48... Kf7
{[%clk 0:00:05.8]} 49. Kg3 {[%clk 0:00:30.9]} 49... Kf6 {[%clk 0:00:05.9]} 50.
Kxg4 {[%clk 0:00:31.7]} 50... a6 {[%clk 0:00:02.4]} 51. Kf4 {[%clk 0:00:32.2]}
51... b5 {[%clk 0:00:02.6]} 52. axb5 {[%clk 0:00:31.6]} 52... axb5 {[%clk
0:00:03.5]} 53. cxb5 {[%clk 0:00:32.5]} 53... c4 {[%clk 0:00:04.4]} 54. b6
{[%clk 0:00:32.8]} 54... c3 {[%clk 0:00:05.3]} 55. Ke3 {[%clk 0:00:33.4]} 55...
c2 {[%clk 0:00:06.2]} 56. Kd2 {[%clk 0:00:34.3]} 56... c1=Q+ {[%clk 0:00:07.1]}
57. Kxc1 {[%clk 0:00:34.7]} 57... Kg5 {[%clk 0:00:07.9]} 58. b7 {[%clk
0:00:35.6]} 58... Kxh6 {[%clk 0:00:08.8]} 59. b8=Q {[%clk 0:00:36.5]} 59... Kg5
{[%clk 0:00:09.6]} 60. Qe5 {[%clk 0:00:34.4]} 60... h5 {[%clk 0:00:10.5]} 61.
f6+ {[%clk 0:00:34.4]} 61... Kh4 {[%clk 0:00:11.4]} 62. Qf4# {[%clk 0:00:29.5]}
1-0

[Event "*** Titled Tuesday Blitz"]
[Site "Chess.com"]
[Date "2020.03.03"]
[Round "4"]
[White "IMTominho"]
[Black "Shant_Sargsyan"]
[Result "1-0"]
[WhiteElo "2832"]
[BlackElo "2989"]
[TimeControl "180+1"]
[EndTime "13:41:44 PST"]
[Termination "IMTominho won by checkmate"]

1. d4 {[%clk 0:03:00.9]} 1... Nf6 {[%clk 0:02:59.7]} 2. c4 {[%clk 0:02:58.7]}
2... e6 {[%clk 0:03:00.1]} 3. Nf3 {[%clk 0:02:57.1]} 3... d5 {[%clk 0:03:00.4]}
4. Nc3 {[%clk 0:02:53.9]} 4... Bb4 {[%clk 0:03:00.7]} 5. Bg5 {[%clk 0:02:47.5]}
5... dxc4 {[%clk 0:03:01.6]} 6. e3 {[%clk 0:02:35]} 6... b5 {[%clk 0:03:01.6]}
7. a4 {[%clk 0:02:32.1]} 7... c6 {[%clk 0:03:01.8]} 8. Nd2 {[%clk 0:02:27.8]}
8... Bb7 {[%clk 0:02:42]} 9. Be2 {[%clk 0:02:27.7]} 9... a6 {[%clk 0:02:40.6]}
10. O-O {[%clk 0:02:24.6]} 10... Nbd7 {[%clk 0:02:40.6]} 11. Nde4 {[%clk
0:02:22.9]} 11... Be7 {[%clk 0:02:39.5]} 12. Nxf6+ {[%clk 0:02:17.3]} 12... Nxf6
{[%clk 0:02:40.4]} 13. Bf3 {[%clk 0:02:14.5]} 13... Rb8 {[%clk 0:02:38.2]} 14.
axb5 {[%clk 0:02:08.1]} 14... axb5 {[%clk 0:02:36.3]} 15. Bf4 {[%clk 0:02:07.9]}
15... Bd6 {[%clk 0:02:36.2]} 16. Bg5 {[%clk 0:02:05.9]} 16... O-O {[%clk
0:02:36.8]} 17. b3 {[%clk 0:02:01.9]} 17... cxb3 {[%clk 0:02:30.8]} 18. Qxb3
{[%clk 0:02:02.8]} 18... h6 {[%clk 0:02:27]} 19. Bh4 {[%clk 0:01:54.1]} 19...
Be7 {[%clk 0:02:08.6]} 20. Rfc1 {[%clk 0:01:50.5]} 20... Qd7 {[%clk 0:01:55.1]}
21. Ra7 {[%clk 0:01:46.4]} 21... Nd5 {[%clk 0:01:37.8]} 22. Bxe7 {[%clk
0:01:43.1]} 22... Qxe7 {[%clk 0:01:38.7]} 23. Ne4 {[%clk 0:01:43.3]} 23... Ra8
{[%clk 0:01:38.4]} 24. Rca1 {[%clk 0:01:26.9]} 24... Rxa7 {[%clk 0:01:38.8]} 25.
Rxa7 {[%clk 0:01:26]} 25... Ra8 {[%clk 0:01:28.2]} 26. Rxa8+ {[%clk 0:01:25.6]}
26... Bxa8 {[%clk 0:01:29.1]} 27. Nc5 {[%clk 0:01:26.5]} 27... Qa7 {[%clk
0:01:23.2]} 28. g3 {[%clk 0:01:26.6]} 28... Bb7 {[%clk 0:01:21]} 29. Qb1 {[%clk
0:01:21.8]} 29... Bc8 {[%clk 0:01:18.8]} 30. Kg2 {[%clk 0:01:21.3]} 30... e5
{[%clk 0:01:15.4]} 31. Bxd5 {[%clk 0:01:18.4]} 31... cxd5 {[%clk 0:01:12]} 32.
Qxb5 {[%clk 0:01:18.3]} 32... exd4 {[%clk 0:01:08.8]} 33. Qe8+ {[%clk
0:01:16.7]} 33... Kh7 {[%clk 0:01:09.1]} 34. Qxc8 {[%clk 0:01:17.6]} 34... dxe3
{[%clk 0:01:08.5]} 35. fxe3 {[%clk 0:01:13.1]} 35... Qa2+ {[%clk 0:01:08.5]} 36.
Kh3 {[%clk 0:01:12.4]} 36... Qf2 {[%clk 0:01:07.2]} 37. e4 {[%clk 0:00:53.4]}
37... Qf1+ {[%clk 0:00:50.4]} 38. Kg4 {[%clk 0:00:53]} 38... g6 {[%clk 0:00:34]}
39. Qd7 {[%clk 0:00:47.9]} 39... dxe4 {[%clk 0:00:16.9]} 40. Nxe4 {[%clk
0:00:43.5]} 40... Qe2+ {[%clk 0:00:15.1]} 41. Kf4 {[%clk 0:00:40.8]} 41... Qf1+
{[%clk 0:00:14.8]} 42. Ke5 {[%clk 0:00:38.3]} 42... Qa1+ {[%clk 0:00:15.1]} 43.
Qd4 {[%clk 0:00:35.4]} 43... Qa5+ {[%clk 0:00:14]} 44. Kd6 {[%clk 0:00:35.2]}
44... Qd8+ {[%clk 0:00:10.9]} 45. Kc5 {[%clk 0:00:34]} 45... Qa5+ {[%clk
0:00:10.7]} 46. Kc4 {[%clk 0:00:33.5]} 46... Qa4+ {[%clk 0:00:10.6]} 47. Kd5
{[%clk 0:00:33.9]} 47... Qd7+ {[%clk 0:00:10.3]} 48. Nd6 {[%clk 0:00:33.6]}
48... Qe6+ {[%clk 0:00:10.6]} 49. Kc5 {[%clk 0:00:32]} 49... h5 {[%clk
0:00:10.6]} 50. Qd5 {[%clk 0:00:27.8]} 50... Qe3+ {[%clk 0:00:10.8]} 51. Kc6
{[%clk 0:00:27.6]} 51... Qc3+ {[%clk 0:00:11.1]} 52. Kd7 {[%clk 0:00:27.9]}
52... f5 {[%clk 0:00:08.6]} 53. Ne8 {[%clk 0:00:25]} 53... Kh6 {[%clk
0:00:08.1]} 54. Ke6 {[%clk 0:00:23.1]} 54... Qc8+ {[%clk 0:00:06.6]} 55. Kf7
{[%clk 0:00:22.1]} 55... Qc3 {[%clk 0:00:04.6]} 56. Qe6 {[%clk 0:00:20.4]} 56...
Qc5 {[%clk 0:00:01.4]} 57. Qxg6# {[%clk 0:00:19.9]} 1-0

[Event "*** Titled Tuesday Blitz"]
[Site "Chess.com"]
[Date "2020.03.03"]
[Round "4"]
[White "Volodar_Murzin"]
[Black "enriquetejedor"]
[Result "0-1"]
[WhiteElo "2686"]
[BlackElo "2555"]
[TimeControl "180+1"]
[EndTime "13:41:46 PST"]
[Termination "enriquetejedor won on time"]

1. Nf3 {[%clk 0:03:00.9]} 1... d5 {[%clk 0:02:58.3]} 2. g3 {[%clk 0:03:01.8]}
2... Bg4 {[%clk 0:02:57.7]} 3. Bg2 {[%clk 0:03:01.8]} 3... Nd7 {[%clk
0:02:57.1]} 4. O-O {[%clk 0:03:01.5]} 4... c6 {[%clk 0:02:57.4]} 5. d3 {[%clk
0:03:01.9]} 5... e5 {[%clk 0:02:55.1]} 6. Nbd2 {[%clk 0:03:01.9]} 6... Ngf6
{[%clk 0:02:54.1]} 7. e4 {[%clk 0:03:01.8]} 7... Bd6 {[%clk 0:02:50.4]} 8. Qe1
{[%clk 0:03:01.2]} 8... O-O {[%clk 0:02:48.5]} 9. h3 {[%clk 0:03:01.1]} 9... Bh5
{[%clk 0:02:44.9]} 10. Nh4 {[%clk 0:02:59.6]} 10... Re8 {[%clk 0:02:43.6]} 11.
Nf5 {[%clk 0:02:59.2]} 11... Bf8 {[%clk 0:02:38.4]} 12. a4 {[%clk 0:02:58.9]}
12... a5 {[%clk 0:02:37.2]} 13. Nb3 {[%clk 0:02:56.3]} 13... Bg6 {[%clk
0:02:35.8]} 14. Be3 {[%clk 0:02:51.6]} 14... Qc7 {[%clk 0:02:23.9]} 15. Nh4
{[%clk 0:02:27.1]} 15... Bh5 {[%clk 0:02:17.3]} 16. g4 {[%clk 0:01:58.9]} 16...
Bg6 {[%clk 0:02:16.6]} 17. Nxg6 {[%clk 0:01:59.4]} 17... hxg6 {[%clk 0:02:16]}
18. Qe2 {[%clk 0:01:41.9]} 18... d4 {[%clk 0:02:13]} 19. Bd2 {[%clk 0:01:41]}
19... Bb4 {[%clk 0:02:11.4]} 20. Bc1 {[%clk 0:01:38.3]} 20... Bd6 {[%clk
0:02:09.2]} 21. Nd2 {[%clk 0:01:37.7]} 21... b5 {[%clk 0:02:06.8]} 22. h4 {[%clk
0:01:05.3]} 22... Nb6 {[%clk 0:02:04]} 23. b3 {[%clk 0:01:02]} 23... bxa4 {[%clk
0:02:01.1]} 24. bxa4 {[%clk 0:01:02.9]} 24... Nfd7 {[%clk 0:02:01]} 25. g5
{[%clk 0:01:02.1]} 25... Nc5 {[%clk 0:01:59.5]} 26. h5 {[%clk 0:01:00.8]} 26...
gxh5 {[%clk 0:01:59.4]} 27. Qxh5 {[%clk 0:01:00.8]} 27... g6 {[%clk 0:01:59.9]}
28. Qh4 {[%clk 0:01:00.7]} 28... Ncxa4 {[%clk 0:01:47]} 29. Bf3 {[%clk
0:00:52.4]} 29... Nc3 {[%clk 0:01:44.4]} 30. Kg2 {[%clk 0:00:51.4]} 30... Kf8
{[%clk 0:01:41.9]} 31. Bg4 {[%clk 0:00:48.5]} 31... Ke7 {[%clk 0:01:31]} 32. f4
{[%clk 0:00:43.2]} 32... exf4 {[%clk 0:01:09.8]} 33. Nf3 {[%clk 0:00:41.8]}
33... Rh8 {[%clk 0:01:02.5]} 34. Qf2 {[%clk 0:00:38]} 34... Nd7 {[%clk
0:00:24.7]} 35. Qxd4 {[%clk 0:00:32]} 35... Ne2 {[%clk 0:00:23.9]} 36. Qf2
{[%clk 0:00:15.5]} 36... Nxc1 {[%clk 0:00:23.7]} 37. Rfxc1 {[%clk 0:00:14.3]}
37... Ne5 {[%clk 0:00:19.7]} 38. Nxe5 {[%clk 0:00:10.7]} 38... Bxe5 {[%clk
0:00:20.6]} 39. d4 {[%clk 0:00:10.3]} 39... f3+ {[%clk 0:00:05.2]} 40. Kxf3
{[%clk 0:00:10.2]} 40... Rh2 {[%clk 0:00:03.2]} 41. Qg1 {[%clk 0:00:09]} 41...
Bf4 {[%clk 0:00:02]} 42. e5 {[%clk 0:00:05.8]} 42... Bxc1 {[%clk 0:00:02.2]} 43.
Qxh2 {[%clk 0:00:05.8]} 43... Bxg5 {[%clk 0:00:02.4]} 44. Rg1 {[%clk 0:00:05]}
44... Qb6 {[%clk 0:00:02.5]} 45. Ke4 {[%clk 0:00:04.7]} 45... Qb5 {[%clk
0:00:02.2]} 46. Qh7 {[%clk 0:00:04]} 46... Qd5+ {[%clk 0:00:02.7]} 47. Kd3
{[%clk 0:00:03.9]} 47... Qb5+ {[%clk 0:00:03.6]} 48. Ke4 {[%clk 0:00:03]} 48...
Rd8 {[%clk 0:00:03.5]} 49. c3 {[%clk 0:00:02.6]} 49... Qd5+ {[%clk 0:00:03.3]}
50. Kd3 {[%clk 0:00:02.6]} 50... Qxe5 {[%clk 0:00:03.8]} 51. Rf1 {[%clk
0:00:02.9]} 51... Qe3+ {[%clk 0:00:04]} 52. Kc4 {[%clk 0:00:02.3]} 52... Rf8
{[%clk 0:00:04.2]} 0-1

[Event "*** Titled Tuesday Blitz"]
[Site "Chess.com"]
[Date "2020.03.03"]
[Round "4"]
[White "nocnypako"]
[Black "Koksik_13"]
[Result "1-0"]
[WhiteElo "2582"]
[BlackElo "2728"]
[TimeControl "180+1"]
[EndTime "13:41:47 PST"]
[Termination "nocnypako won by resignation"]

1. d4 {[%clk 0:03:00.9]} 1... e6 {[%clk 0:03:00.2]} 2. c4 {[%clk 0:03:00.5]}
2... d5 {[%clk 0:03:00.5]} 3. Nc3 {[%clk 0:02:32.4]} 3... a6 {[%clk 0:03:00.1]}
4. cxd5 {[%clk 0:02:31.3]} 4... exd5 {[%clk 0:03:01]} 5. Bf4 {[%clk 0:02:31.6]}
5... c6 {[%clk 0:03:00.7]} 6. e3 {[%clk 0:02:27.9]} 6... Bd6 {[%clk 0:03:00.2]}
7. Bxd6 {[%clk 0:02:27.6]} 7... Qxd6 {[%clk 0:03:01.1]} 8. Nf3 {[%clk
0:02:28.5]} 8... Nf6 {[%clk 0:03:01.3]} 9. Bd3 {[%clk 0:02:29.4]} 9... Nbd7
{[%clk 0:03:01.7]} 10. O-O {[%clk 0:02:30]} 10... O-O {[%clk 0:03:02.2]} 11. h3
{[%clk 0:02:30.6]} 11... Re8 {[%clk 0:03:02.5]} 12. Rb1 {[%clk 0:02:31.1]} 12...
Nf8 {[%clk 0:03:02.9]} 13. Qc2 {[%clk 0:02:31.2]} 13... Ng6 {[%clk 0:03:02]} 14.
b4 {[%clk 0:02:29.9]} 14... Qe7 {[%clk 0:02:56.9]} 15. a4 {[%clk 0:01:55.2]}
15... Ne4 {[%clk 0:02:55.3]} 16. Bxe4 {[%clk 0:01:54.2]} 16... dxe4 {[%clk
0:02:56.2]} 17. Nd2 {[%clk 0:01:54.8]} 17... Bf5 {[%clk 0:02:44.4]} 18. Nc4
{[%clk 0:01:53.6]} 18... Nh4 {[%clk 0:02:44.1]} 19. Ne2 {[%clk 0:01:22.1]} 19...
h5 {[%clk 0:02:33.4]} 20. Ng3 {[%clk 0:01:01.2]} 20... Qg5 {[%clk 0:02:32.7]}
21. Nd6 {[%clk 0:00:56.6]} 21... Bg6 {[%clk 0:02:19.6]} 22. Nxe8 {[%clk
0:00:55.1]} 22... Rxe8 {[%clk 0:02:20.5]} 23. Qc5 {[%clk 0:00:54.2]} 23... f5
{[%clk 0:02:18.7]} 24. Qd6 {[%clk 0:00:54.4]} 24... Bf7 {[%clk 0:02:07.3]} 25.
b5 {[%clk 0:00:52]} 25... Ng6 {[%clk 0:02:00.1]} 26. bxc6 {[%clk 0:00:48.9]}
26... bxc6 {[%clk 0:01:58]} 27. Rb8 {[%clk 0:00:46.7]} 27... Rxb8 {[%clk
0:01:57.6]} 28. Qxb8+ {[%clk 0:00:47.6]} 28... Kh7 {[%clk 0:01:58]} 29. Qc7
{[%clk 0:00:44.7]} 29... Kg8 {[%clk 0:01:52.6]} 30. Rb1 {[%clk 0:00:43.8]} 30...
h4 {[%clk 0:01:47.1]} 31. Rb8+ {[%clk 0:00:40.4]} 31... Kh7 {[%clk 0:01:43.5]}
32. Ne2 {[%clk 0:00:32.8]} 32... Bc4 {[%clk 0:00:50.8]} 33. Nf4 {[%clk
0:00:28.9]} 33... Nxf4 {[%clk 0:00:24.8]} 34. Qxf4 {[%clk 0:00:29.8]} 34... Qh5
{[%clk 0:00:23.9]} 35. Rb7 {[%clk 0:00:20.6]} 35... Bf1 {[%clk 0:00:23.7]} 36.
Qe5 {[%clk 0:00:15.9]} 36... Qg5 {[%clk 0:00:22.4]} 37. Qxg7+ {[%clk 0:00:15.8]}
37... Qxg7 {[%clk 0:00:22.1]} 38. Rxg7+ {[%clk 0:00:16.7]} 38... Kxg7 {[%clk
0:00:23]} 39. Kxf1 {[%clk 0:00:17.5]} 39... Kf6 {[%clk 0:00:20.9]} 40. g3 {[%clk
0:00:17.8]} 40... Kg5 {[%clk 0:00:19.6]} 41. Ke2 {[%clk 0:00:17.4]} 41... Kf6
{[%clk 0:00:16.2]} 42. Kd2 {[%clk 0:00:13.3]} 42... Ke6 {[%clk 0:00:15.4]} 43.
Kc3 {[%clk 0:00:12.8]} 43... Kd5 {[%clk 0:00:09.2]} 44. gxh4 {[%clk 0:00:12.9]}
44... Ke6 {[%clk 0:00:08.1]} 45. Kc4 {[%clk 0:00:13]} 45... Kf6 {[%clk
0:00:08.4]} 46. Kc5 {[%clk 0:00:13.2]} 46... f4 {[%clk 0:00:09.3]} 47. exf4
{[%clk 0:00:11.8]} 47... Kf5 {[%clk 0:00:09]} 48. Kxc6 {[%clk 0:00:11.9]} 48...
Kxf4 {[%clk 0:00:09.2]} 49. d5 {[%clk 0:00:12]} 49... Kf3 {[%clk 0:00:09.5]} 50.
d6 {[%clk 0:00:12.4]} 50... e3 {[%clk 0:00:09.9]} 51. fxe3 {[%clk 0:00:11.7]}
1-0